[Event "44th Chess Olympiad Women 2022"]
[Site "Chennai"]
[Date "2022.07.29"]
[Round "1.32"]
[White "Maradiaga, Cesia"]
[Black "Citra, Dewi Ardhiani Anasta"]
[Result "0-1"]
[ECO "D02"]
[WhiteElo "1533"]
[BlackElo "2257"]
[Annotator "TA"]
[PlyCount "54"]
[EventDate "2022.07.29"]
[EventType "team-tourn"]
[EventCountry "IND"]
[SourceTitle "playchess.com"]
[Source "ChessBase"]
[SourceQuality "1"]
[WhiteTeam "Honduras"]
[BlackTeam "Indonesia"]
[WhiteTeamCountry "HON"]
[BlackTeamCountry "INA"]
[TimeControl "40/5400+30:1800+30"]

{[%evp 9,54,26,29,27,36,31,64,54,53,51,67,60,64,55,58,55,59,53,98,0,0,-291,-291,-289,-269,-315,-331,-332,-330,-324,-311,-308,-239,-370,-370,-413,-434,-460,-386,-1054,-1045,-1176,-1178,-2914,-1135,-3139,-2441]} 1. Nf3 {[%emt 0:00:04]} d5 {[%emt 0:00:20]} 2. b3 {[%emt 0:00:36]} Nc6 {[%emt 0:00:29]} 3. d4 {[%emt 0:05:08]} Bg4 {[%emt 0:00:57]} 4. e3 {[%emt 0:03:21]} e6 {[%emt 0:02:56]} 5. Be2 {[%emt 0:02:33]} Nf6 {[%emt 0:03:06]} 6. O-O {[%emt 0:05:06] D02: 1 d4 d5 2 Nf3 sidelines, including 2...Nf6 3 g3 and 2...Nf6 3 Bf4.} Bd6 {[%emt 0:02:54]} 7. Nbd2 {[%emt 0:10:56][%cal Bb1d2,Bd2f3,Bf3e5][%mdl 32]} Bxf3 {[%emt 0:01:38]} 8. Nxf3 {[%emt 0:02:14] White is slightly better.} Ne4 {[%emt 0:00:18]} 9. Bb2 {[%emt 0:00:55]} Ne7 {[%emt 0:04:12][%cal Bc6e7,Be7g6,Bg6h4,Bh4f3][%mdl 32]} 10. c4 {[%emt 0:13:09] [#] And now c5 would win.} c6 {[%emt 0:00:15] [#]} 11. Rc1 $146 {[%emt 0:01:21]} ({Predecessor:} 11. Ne5 Nf5 12. cxd5 exd5 13. Qd3 Qg5 14. f4 Qe7 15. Bf3 g6 16. Bxe4 dxe4 17. Qd2 Bxe5 18. fxe5 {0-1 (51) Perez Puyal,J (1929)-Ruiperez Gumiel,R (1947) Aragon 2012}) 11... O-O {[%emt 0:03:29]} 12. Bd3 {[%emt 0:03:10]} Ng6 {[%emt 0:04:20]} 13. Ne5 {[%emt 0:05:59]} Nh4 {[%emt 0:05:47]} 14. Bxe4 {[%emt 0:09:21]} (14. g3 $16) 14... dxe4 $11 {[%emt 0:00:12]} 15. Qe2 $2 {[%emt 0:12:41][%mdl 8192]} (15. f4 $11) 15... Bxe5 $19 {[%emt 0:02:42]} ({Weaker is} 15... Qg5 16. f4 exf3 17. Nxf3 Nxf3+ 18. Qxf3 $11) 16. dxe5 {[%emt 0:00:20]} Qg5 {[%emt 0:00:09][%csl Gh4][%cal Rg5g2] [#]} 17. f3 {[%emt 0:04:11]} exf3 {[%emt 0:00:18]} 18. Rxf3 {[%emt 0:00:38]} Nxf3+ {[%emt 0:00:07]} 19. Qxf3 {[%emt 0:00:23]} Rfd8 {[%emt 0:00:23][%cal Bf8d8,Bd8d7,Bd7d2,Bd2b2][%mdl 32]} 20. Rf1 {[%emt 0:00:13]} Rd7 {[%emt 0:00:07]} 21. b4 {[%emt 0:02:32]} (21. c5 $142) 21... Qe7 {[%emt 0:01:38]} 22. c5 {[%emt 0:01:44]} Rd2 {[%emt 0:00:55]} 23. Rb1 {[%emt 0:03:15]} Qg5 {[%emt 0:02:31] White must now prevent ...Qg6.} 24. g3 $2 {[%emt 0:01:08]} (24. Bd4) 24... Qg6 {[%emt 0:00:54] Black is clearly winning.} 25. e4 {[%emt 0:00:40]} Rad8 {[%emt 0:00:10] Strongly threatening ...R8d3.} 26. a3 {[%emt 0:00:43]} h5 {[%emt 0:00:07]} (26... R8d3 $142 27. Qxd3 Rxd3) 27. Rf1 {[%emt 0:00:47]} Rxb2 {[%emt 0:00:10] Weighted Error Value: White=1.13/Black=0.26 (precise)} 0-1

[Event "44th Chess Olympiad Women 2022"]
[Site "Chennai"]
[Date "2022.07.29"]
[Round "1.33"]
[White "Argote Heredia, Valentina"]
[Black "Bantiwalu, Aster Melake"]
[Result "1-0"]
[ECO "C62"]
[WhiteElo "2205"]
[BlackElo "1425"]
[Annotator "TA"]
[PlyCount "47"]
[EventDate "2022.07.29"]
[EventType "team-tourn"]
[EventCountry "IND"]
[SourceTitle "playchess.com"]
[Source "ChessBase"]
[SourceQuality "1"]
[WhiteTeam "Colombia"]
[BlackTeam "Ethiopia"]
[WhiteTeamCountry "COL"]
[BlackTeamCountry "ETH"]
[TimeControl "40/5400+30:1800+30"]

{[%evp 9,46,14,41,41,40,32,42,34,43,43,41,47,62,58,47,46,48,36,46,22,45,41,56,61,100,105,84,65,144,155,152,152,160,104,101,108,167,163,29999]} 1. e4 {[%emt 4:16:31]} e5 {[%emt 0:00:24]} 2. Nf3 {[%emt 0:00:07]} Nc6 {[%emt 0:01:00]} 3. Bb5 {[%emt 0:00:36]} d6 {[%emt 0:02:06]} 4. h3 {[%emt 0:06:36]} Nf6 {[%emt 0:02:16]} 5. d3 {[%emt 0:01:07]} h6 {[%emt 0:00:45]} 6. O-O {[%emt 0:02:05] C62: Ruy Lopez: Steinitz Defence.} Be7 {[%emt 0:01:26]} 7. c3 {[%emt 0:04:16]} O-O {[%emt 0:01:52]} 8. Re1 {[%emt 0:01:16] White is slightly better.} a6 {[%emt 0:02:05]} 9. Ba4 {[%emt 0:00:22]} b5 {[%emt 0:00:43]} 10. Bc2 {[%emt 0:01:36] [#]} Nd7 $146 {[%emt 0:02:50]} ({Predecessor:} 10... Re8 11. Nbd2 Bf8 12. Nf1 Bb7 13. a3 g6 14. d4 Bg7 15. d5 Nb8 16. b3 Nbd7 17. c4 {0-1 (46) Gutenev,A (2430)-Indjic,A (2610) Chess.com INT 2021}) 11. Nbd2 {[%emt 0:02:31]} Bf6 {[%emt 0:03:03]} 12. Nf1 {[%emt 0:00:11]} Re8 {[%emt 0:01:23]} 13. Ne3 {[%emt 0:04:25]} Nb6 {[%emt 0:02:39]} 14. Nh2 {[%emt 0:02:54]} Ne7 {[%emt 0:04:26]} 15. Qh5 {[%emt 0:02:25]} Bg5 {[%emt 0:07:58]} 16. Bb3 {[%emt 0:07:09]} Be6 {[%emt 0:05:23]} 17. Bxe6 {[%emt 0:00:46]} fxe6 {[%emt 0:00:46]} 18. h4 {[%emt 0:05:34]} Bf6 {[%emt 0:03:54]} ({Black should try} 18... Bf4 $1 $14) 19. Neg4 $36 {[%emt 0:00:11][%mdl 2048] White is really pushing.} Rf8 {[%emt 0:05:46] [#]} 20. Bxh6 $1 {[%emt 0:14:05][%mdl 512]} gxh6 {[%emt 0:03:21]} 21. Nxh6+ {[%emt 0:00:06]} (21. Re3 $142 $1 {[%cal Re3g3] Intending Rg3 and mate.} Qe8 22. Rg3 $1 (22. Nxh6+ Kg7 $16) 22... Qxh5 23. Nxf6+ Kh8 24. Nxh5) 21... Kg7 {[%emt 0:01:05] [#] And now ...Ng6 would win.} 22. Re3 $1 {[%emt 0:00:11][%mdl 1024] White wants to mate with Rg3+. White has strong compensation. The board is on fire. 0x0.0005ecfe8cefdp-1022s more active pieces.} ({But not} 22. N6g4 $2 Rh8 23. Nxf6 Rxh5 24. Nxh5+ Kf7 $19) 22... Qe8 {[%emt 0:01:34]} (22... Bxh4 $16 23. Qxh4 Ng6 24. Qxd8 Rfxd8) 23. Rg3+ $18 {[%emt 0:00:12]} Kh7 $2 {[%emt 0:01:48]} (23... Ng6 $18 24. Nf5+ (24. Nf3 $2 Rh8 $19) 24... exf5 25. exf5 Rh8 26. Rxg6+ Kf7) 24. Nf7# $1 {[%emt 0:00:42] Weighted Error Value: White=0.05 (flawless) /Black=0.49} 1-0

[Event "44th Chess Olympiad Women 2022"]
[Site "Chennai"]
[Date "2022.07.29"]
[Round "1.33"]
[White "Pachon, Adriana"]
[Black "Ayele, Hana Mulugeta"]
[Result "1-0"]
[ECO "C54"]
[WhiteElo "2007"]
[BlackElo "1437"]
[Annotator "TA"]
[PlyCount "95"]
[EventDate "2022.07.29"]
[EventType "team-tourn"]
[EventCountry "IND"]
[SourceTitle "playchess.com"]
[Source "ChessBase"]
[SourceQuality "1"]
[WhiteTeam "Colombia"]
[BlackTeam "Ethiopia"]
[WhiteTeamCountry "COL"]
[BlackTeamCountry "ETH"]
[TimeControl "40/5400+30:1800+30"]

{[%evp 12,95,43,0,8,0,0,0,25,29,24,14,15,14,18,9,84,33,156,163,158,133,141,98,158,158,157,143,156,141,130,134,154,135,139,134,138,123,200,189,189,189,263,208,473,469,458,444,691,676,664,654,1063,830,920,920,880,854,739,626,996,1015,997,865,855,732,1208,781,777,777,1158,764,744,727,29982,29983,29985,29986,29986,29987,29989,29990,29990,29991,29992,29993]} 1. e4 {[%emt 0:00:12]} e5 {[%emt 0:00:08]} 2. Nf3 {[%emt 0:00:05]} Nc6 {[%emt 0:00:12]} 3. Bc4 {[%emt 0:00:12]} Bc5 {[%emt 0:00:13]} 4. c3 {[%emt 0:00:13]} d6 {[%emt 0:00:20]} 5. d3 {[%emt 0:00:18]} h6 {[%emt 0:00:18]} 6. O-O {[%emt 0:00:54]} Nf6 {[%emt 0:00:12]} 7. Be3 {[%emt 0:01:39]} Bb6 {[%emt 0:01:03] C54: Giuoco Piano: 4 c3 Nf6, main lines with 5 d4 and 5 d3.} 8. Bb3 {[%emt 0:02:20]} O-O {[%emt 0:00:21]} 9. Nbd2 {[%emt 0:00:30]} Be6 {[%emt 0:00:46] [#] The position is equal.} 10. Bxe6 $146 {[%emt 0:02:57]} ({Predecessor:} 10. Bc2 d5 11. Re1 dxe4 12. dxe4 Qe7 13. Ba4 Nd7 14. Qe2 Bxe3 15. Qxe3 Ncb8 16. Bc2 {1-0 (46) Alekseev,E (2620)-Sadhwani,R (2507) Moscow 2019}) 10... fxe6 {[%emt 0:00:17]} 11. Nc4 {[%emt 0:02:27]} Bxe3 {[%emt 0:01:55]} 12. fxe3 {[%emt 0:00:26]} b5 {[%emt 0:01:15]} 13. Ncd2 {[%emt 0:01:25]} Nh7 {[%emt 0:01:52] [#]} (13... Rb8 $11) 14. Qb3 {[%emt 0:00:43]} (14. a4 $1 $16 {[%cal Ra4b5]}) 14... Rf6 {[%emt 0:04:18]} (14... Qd7 $14) 15. Qxb5 $16 {[%emt 0:02:38]} Qd7 {[%emt 0:05:19]} 16. Nc4 {[%emt 0:01:52]} Rf7 {[%emt 0:02:39]} 17. Nfd2 {[%emt 0:04:08]} Raf8 {[%emt 0:01:29]} (17... Nf6 $142) 18. Rxf7 {[%emt 0:00:30]} Rxf7 {[%emt 0:00:17]} 19. Rf1 {[%emt 0:00:20] [#] Threatens to win with Rxf7.} Re7 {[%emt 0:02:19]} 20. Na5 {[%emt 0:02:38] White is much more active. The black rooks are badly placed.} Nxa5 {[%emt 0:00:44]} 21. Qxa5 {[%emt 0:00:04]} c6 {[%emt 0:01:05]} 22. Nc4 {[%emt 0:00:07]} Nf6 {[%emt 0:01:13]} 23. Qb4 {[%emt 0:00:56]} c5 {[%emt 0:04:41]} 24. Qb8+ {[%emt 0:02:08]} Ne8 {[%emt 0:02:59]} (24... Re8 $16 25. Qb3 (25. Qxd6 Qxd6 26. Nxd6 Rd8 $16) 25... Qc7) 25. b4 $36 {[%emt 0:00:54][%mdl 2048] White is on the roll.} cxb4 {[%emt 0:02:51]} 26. cxb4 {[%emt 0:01:20]} Kh7 {[%emt 0:01:22]} (26... Qb7 $142 27. Qxb7 (27. Qd8 Qc7 $16) 27... Rxb7) 27. b5 $18 {[%emt 0:01:52] aiming for a4.} Nc7 $2 {[%emt 0:04:33]} (27... Nf6 {keeps fighting.} 28. a4 (28. Qxd6 Qxd6 29. Nxd6 Rd7 $16) (28. Nxd6 Ne8 $16) 28... Re8 29. Qxd6 Qxd6 30. Nxd6 Rd8) 28. a4 {[%emt 0:00:37]} Ne8 {[%emt 0:02:06]} 29. Rf8 {[%emt 0:00:51]} Kg6 {[%emt 0:07:22]} (29... g5 $142 30. Nxd6 Nxd6) 30. h3 {[%emt 0:01:58]} Kh7 {[%emt 0:02:44]} 31. Na5 {[%emt 0:01:46] And now Nc6 would win.} Qc7 {[%emt 0:04:35]} 32. Qxc7 {[%emt 0:00:11]} Nxc7 {[%emt 0:00:15][%mdl 4096] Endgame KRN-KRN} 33. Nc6 {[%emt 0:00:03][%csl LRa7,LRe7]} Rd7 {[%emt 0:04:29]} 34. Nxa7 {[%emt 0:00:11]} d5 {[%emt 0:01:52]} 35. exd5 {[%emt 0:00:32]} exd5 {[%emt 0:00:37]} 36. Nc6 {[%emt 0:00:06]} e4 {[%emt 0:00:50]} 37. dxe4 {[%emt 0:00:37]} dxe4 {[%emt 0:00:23]} 38. Rd8 {[%emt 0:00:05]} Rf7 {[%emt 0:04:05]} 39. Rd4 {[%emt 0:00:22]} Rf5 {[%emt 0:04:04]} 40. b6 {[%emt 0:00:43][%cal Bb5b6,Bb6b7][%mdl 32]} Na6 {[%emt 0:01:27]} 41. b7 {[%emt 0:30:13][%cal Od4b4] Hoping for Rb4!} Rc5 {[%emt 0:30:49]} 42. Nb4 {[%emt 0:00:39]} Nb8 {[%emt 0:00:35]} 43. Rd8 {[%emt 0:00:37] White mates.} Rc4 {[%emt 0:00:35]} 44. Rxb8 {[%emt 0:00:06]} Rxb4 {[%emt 0:00:24]} 45. a5 {[%emt 0:00:04][%cal Ba4a5,Ba5a6,Ba6a7][%mdl 32]} Rb1+ {[%emt 0:01:03]} 46. Kh2 {[%emt 0:00:11]} Rb3 {[%emt 0:00:25]} 47. a6 {[%emt 0:00:06]} Rxe3 {[%emt 0:00:17]} 48. a7 {[%emt 0:00:13] Weighted Error Value: White=0.23 (precise) /Black=0.51} 1-0

[Event "44th Chess Olympiad Women 2022"]
[Site "Chennai"]
[Date "2022.07.29"]
[Round "1.33"]
[White "Haile, Lidet Abate"]
[Black "Chirivi C, Jenny Astrid"]
[Result "0-1"]
[ECO "B22"]
[WhiteElo "1624"]
[BlackElo "2157"]
[Annotator "TA"]
[PlyCount "220"]
[EventDate "2022.07.29"]
[EventType "team-tourn"]
[EventCountry "IND"]
[SourceTitle "playchess.com"]
[Source "ChessBase"]
[SourceQuality "1"]
[WhiteTeam "Ethiopia"]
[BlackTeam "Colombia"]
[WhiteTeamCountry "ETH"]
[BlackTeamCountry "COL"]
[TimeControl "40/5400+30:1800+30"]

{[%evp 10,219,31,36,35,29,27,21,25,16,24,16,20,0,4,-19,11,0,0,-15,0,-26,-12,-22,-17,-64,0,0,19,26,100,39,121,0,0,-47,9,10,47,59,71,-6,0,-66,0,-16,118,-90,-68,-69,33,-60,54,-83,-54,-120,-109,-127,-39,-195,0,-22,-30,-28,4,0,4,-12,-8,-16,10,0,0,-44,61,66,81,35,105,56,63,29,38,0,0,0,0,0,0,-18,-14,-13,-20,-20,0,0,0,0,0,0,0,0,0,0,0,0,0,0,0,0,0,0,0,27,0,0,0,0,0,0,0,0,0,0,0,0,0,0,0,0,0,0,0,0,0,0,0,0,0,0,0,0,0,0,0,0,0,0,0,0,0,0,0,0,0,0,0,0,0,0,0,0,0,0,0,0,0,0,0,0,0,0,0,0,0,0,0,0,0,0,0,0,0,0,0,0,0,0,0,0,0,0,0,0,0,0,0,-27981,-27981,-27982,0,0,0,0,0,0,0,0,0,-27999,-27999,-29999]} 1. e4 {[%emt 0:00:05][%cal Be2e4,Be4e5][%mdl 32]} c5 {[%emt 0:00:09]} 2. Nf3 {[%emt 0:00:13]} e6 {[%emt 0:00:24]} 3. c3 {[%emt 0:00:38]} Nf6 {[%emt 0:00:38]} 4. e5 {[%emt 0:01:06]} Nd5 {[%emt 0:00:23]} 5. Bc4 {[%emt 0:00:52]} Nb6 {[%emt 0:01:22]} 6. Bb3 {[%emt 0:00:47]} Nc6 {[%emt 0:00:53] B22: Sicilian: 2 c3.} 7. O-O {[%emt 0:00:25]} d6 {[%emt 0:02:01]} 8. exd6 {[%emt 0:01:07]} Bxd6 {[%emt 0:01:06] The position is equal.} 9. d4 {[%emt 0:01:44]} cxd4 {[%emt 0:01:15]} 10. Nxd4 {[%emt 0:00:48]} O-O {[%emt 0:05:06]} (10... Qh4 11. g3 Qe7 12. Nxc6 bxc6 13. Nd2 $14) 11. Nxc6 {[%emt 0:01:12]} bxc6 {[%emt 0:00:15] [#]} 12. Qh5 $146 {[%emt 0:08:14]} ({Predecessor:} 12. Nd2 Qc7 13. h3 Ba6 14. Re1 Rad8 15. Qf3 c5 16. Bc2 Bb7 17. Qh5 g6 18. Qe2 {½-½ (63) Salgado Lopez,I (2605)-Frolyanov,D (2556) Moscow 2019}) 12... Nd5 {[%emt 0:08:36]} 13. Bc2 {[%emt 0:04:21][%csl Gc2][%cal Rh5h7]} g6 {[%emt 0:07:30]} 14. Qh6 {[%emt 0:03:20]} Qc7 {[%emt 0:02:56]} 15. g3 {[%emt 0:02:49]} e5 {[%emt 0:03:02]} 16. Nd2 {[%emt 0:05:01]} f5 {[%emt 0:04:44]} 17. Bb3 {[%emt 0:01:38]} (17. Re1 $11) 17... Bc5 {[%emt 0:07:18]} (17... a5 $15) 18. Nf3 $11 {[%emt 0:03:30]} Ba6 {[%emt 0:03:14]} 19. Rd1 {[%emt 0:02:03]} Rad8 {[%emt 0:03:58]} (19... Be2 $11 20. Rxd5 cxd5 21. Bxd5+ Kh8 22. Bxa8 Rxa8) 20. Bg5 {[%emt 0:04:59]} (20. Be3 $16 Bxe3 21. Qxe3) 20... Rd7 {[%emt 0:03:29]} (20... Rde8 $14) 21. Re1 {[%emt 0:01:48]} ({White should try} 21. Rd2 $16) 21... e4 {[%emt 0:08:32]} 22. Nh4 {[%emt 0:03:28]} (22. Bf4 $11 Qb6 23. Ne5) 22... Rff7 {[%emt 0:05:24]} (22... Qb6 $15 23. Be3 Bxe3 24. Qxe3 Qxe3 25. Rxe3 Kg7) 23. Ng2 {[%emt 0:04:49]} Bf8 {[%emt 0:08:26]} (23... Qb6 $5 {[%cal Rc5f2]} 24. Be3 Bxe3 25. Nxe3 Bd3 $11) 24. Qh4 {[%emt 0:03:10]} c5 {[%emt 0:03:34]} 25. Ba4 {[%emt 0:02:39]} (25. Nf4 $16 c4 26. Ba4) 25... Rd6 {[%emt 0:03:55]} 26. Ne3 {[%emt 0:11:34]} (26. Rad1 $1 $11) 26... Qc8 {[%emt 0:03:42]} (26... Nxe3 $15 27. Bxe3 Qa5) 27. Rad1 {[%emt 0:02:33]} Bd3 {[%emt 0:01:24]} (27... Nxe3 $11 28. Rxd6 Bxd6 29. Bxe3 Bd3) 28. Bf4 $2 {[%emt 0:09:44]} (28. Bb3 $16 c4 29. Rxd3 $1 Nxe3 30. Rxd6 (30. Rdxe3 cxb3 31. axb3 Rb6 $11) 30... Bxd6 31. Bxe3 cxb3 32. axb3) 28... Nxe3 {[%emt 0:01:03]} 29. Bxe3 {[%emt 0:00:41]} Ra6 {[%emt 0:02:04]} (29... Be7 $15 30. Bg5 Bxg5 31. Qxg5 Qc7) 30. b3 {[%emt 0:01:45]} ({Not} 30. Bb3 $2 c4 31. Rxd3 Be7 $17) (30. Rxd3 $1 $14 Be7 31. Bg5 (31. Bd7 Qb7 $15) 31... Rxa4 32. Rd2 (32. Bxe7 Rxe7 33. Rd6 Qe8 $14)) 30... Bg7 {[%emt 0:01:40] [#]} (30... Be7 $15 31. Bg5 Bxg5 32. Qxg5 Qc7) 31. Rc1 {[%emt 0:01:17]} (31. Bb5 $1 $14 {stays ahead.}) 31... Rd6 {[%emt 0:03:37]} 32. Qf4 {[%emt 0:02:12]} (32. c4 $15) 32... Rd8 {[%emt 0:00:24] 0x0.0024d7798684dp-1022s more active pieces.} 33. h4 {[%emt 0:00:19][%cal Oh4h5]} h6 {[%emt 0:00:32]} (33... Bf8 $1 $17 {[%cal Rf8d6] ...Bd6 is the strong threat.} 34. b4 Bd6) 34. Bd2 $2 {[%emt 0:02:29]} (34. Rcd1 $15) 34... Qc7 $2 {[%emt 0:01:41]} (34... Qe6 $1 $19 {White must now prevent ...Be5.} 35. b4 Qxa2) 35. Qxc7 {[%emt 0:02:05]} Rxc7 {[%emt 0:00:03]} 36. b4 {[%emt 0:02:22]} Bc4 {[%emt 0:01:14]} 37. Be3 {[%emt 0:00:41]} Bf8 {[%emt 0:01:26]} 38. a3 {[%emt 0:00:48]} Kh7 {[%emt 0:00:46]} 39. Red1 {[%emt 0:03:10]} Rd3 {[%emt 0:00:39]} 40. Rxd3 {[%emt 0:02:08]} (40. Kg2 {with more complications.} h5 41. Bf4 Rb7 42. Bc2) 40... Bxd3 {[%emt 0:00:25]} 41. Bc2 {[%emt 0:32:51]} cxb4 {[%emt 0:30:57]} (41... Bxc2 $15 42. Rxc2 cxb4 43. axb4 Bxb4) 42. Bxd3 $14 {[%emt 0:00:37]} exd3 {[%emt 0:00:00]} 43. axb4 $15 {[%emt 0:00:00][%mdl 4096] Endgame KRB-KRB} ({Better is} 43. cxb4 $16 Rxc1+ 44. Bxc1) 43... Bg7 {[%emt 0:00:00]} (43... g5 $14) 44. Bd2 {[%emt 0:00:00]} ({White should play} 44. c4 $16) 44... Kg8 $14 {[%emt 0:00:00]} 45. Kf1 {[%emt 0:00:00]} Kf7 {[%emt 0:00:00]} 46. Ke1 {[%emt 0:00:00]} Rc4 {[%emt 0:00:00]} 47. Kd1 {[%emt 0:00:00]} Ke6 {[%emt 0:00:00]} 48. Be1 {[%emt 0:00:00]} Kd5 {[%emt 0:00:00]} 49. Kd2 {[%emt 0:00:00]} Ke4 {[%emt 0:00:00]} 50. f3+ $1 {[%emt 0:00:00]} Kxf3 {[%emt 0:00:00] Hoping for ...Ke4.} 51. Kxd3 {[%emt 0:00:00]} Rc7 {[%emt 0:01:27]} 52. c4 $1 {[%emt 0:00:00]} Rd7+ {[%emt 0:00:10]} 53. Kc2 {[%emt 0:00:00]} Be5 {[%emt 0:00:24]} 54. Kb3 {[%emt 0:00:00]} g5 {[%emt 0:01:32]} 55. hxg5 {[%emt 0:00:00]} hxg5 {[%emt 0:00:03][%cal Bh6g5,Bg5f4,Bf4f3][%mdl 32]} 56. c5 {[%emt 0:00:00]} f4 {[%emt 0:00:39]} 57. gxf4 {[%emt 0:00:00]} gxf4 {[%emt 0:00:31]} 58. c6 {[%emt 0:00:00]} Rh7 {[%emt 0:03:04]} 59. Bc3 {[%emt 0:00:00]} Bc7 {[%emt 0:00:29]} 60. Bd4 {[%emt 0:00:00]} a6 {[%emt 0:00:08]} 61. Ra1 {[%emt 0:00:00]} Ke4 {[%emt 0:00:16]} 62. Bc5 {[%emt 0:00:00]} f3 {[%emt 0:01:06]} 63. Rxa6 {[%emt 0:00:00] Threatens to win with Kc4.} Kd5 {[%emt 0:00:40]} 64. Kc3 {[%emt 0:00:00]} Bg3 {[%emt 0:00:31]} 65. Ra8 {[%emt 0:03:22]} Rf7 {[%emt 0:01:06]} 66. Ra2 {[%emt 0:01:37]} f2 {[%emt 0:00:52]} 67. Bxf2 {[%emt 0:00:24]} Rf3+ {[%emt 0:00:37]} 68. Be3 {[%emt 0:01:20]} Rxe3+ $11 {[%emt 0:00:15] KRB-KR} 69. Kd2 {[%emt 0:01:01]} Bf4 {[%emt 0:00:34] Strongly threatening ...Ra3+.} 70. Ra5+ {[%emt 0:02:17]} Kxc6 {[%emt 0:00:40]} 71. Rf5 {[%emt 0:01:14]} Re4+ {[%emt 0:00:12]} 72. Kc3 {[%emt 0:00:56]} Bc7 {[%emt 0:00:45]} 73. b5+ {[%emt 0:00:25]} Kb6 {[%emt 0:00:11]} 74. Kd3 {[%emt 0:00:12]} Rg4 {[%emt 0:00:47]} 75. Kc3 {[%emt 0:00:25]} Bh2 {[%emt 0:00:16]} 76. Kd3 {[%emt 0:00:15]} Bg1 {[%emt 0:00:10]} 77. Ke2 {[%emt 0:00:40]} Bc5 {[%emt 0:00:36]} 78. Kf3 {[%emt 0:00:16]} Ra4 {[%emt 0:00:20]} 79. Rf6+ {[%emt 0:00:32]} Kxb5 {[%emt 0:00:06]} 80. Rf5 {[%emt 0:00:48]} Kc4 {[%emt 0:00:28]} 81. Ke4 {[%emt 0:00:51]} Ra6 {[%emt 0:01:34]} 82. Rf4 {[%emt 0:01:16]} Bd4 {[%emt 0:00:19]} 83. Rf7 {[%emt 0:01:21]} Re6+ {[%emt 0:00:06]} 84. Kf5 {[%emt 0:00:08]} Re5+ {[%emt 0:00:27]} 85. Kf4 {[%emt 0:00:07]} Kd3 {[%emt 0:00:27]} 86. Rb7 {[%emt 0:00:18]} Re6 {[%emt 0:00:45]} 87. Rb3+ {[%emt 0:00:32]} Bc3 {[%emt 0:00:34]} 88. Kf5 {[%emt 0:00:32]} Rf6+ {[%emt 0:00:20]} 89. Kg5 {[%emt 0:00:07]} Rf8 {[%emt 0:00:32]} 90. Kg4 {[%emt 0:01:31]} Kc4 {[%emt 0:00:31]} 91. Rb7 {[%emt 0:01:44]} Bd4 {[%emt 0:00:23]} 92. Re7 {[%emt 0:00:33]} Kd5 {[%emt 0:00:11]} 93. Re2 {[%emt 0:00:08]} Rf1 {[%emt 0:01:27]} 94. Kg3 {[%emt 0:00:19]} Be5+ {[%emt 0:00:37]} 95. Kg4 {[%emt 0:00:10]} Ke6 {[%emt 0:00:24]} 96. Ra2 {[%emt 0:00:36]} Rf4+ {[%emt 0:00:18]} 97. Kh3 {[%emt 0:00:57]} Kf5 {[%emt 0:00:24]} 98. Ra8 {[%emt 0:00:15]} Ke4 {[%emt 0:00:54]} 99. Ra4+ {[%emt 0:00:18]} Bd4 {[%emt 0:00:06]} 100. Kg2 {[%emt 0:00:49]} Rg4+ {[%emt 0:00:39]} 101. Kh3 {[%emt 0:01:47]} Rg7 {[%emt 0:00:38]} 102. Kh4 {[%emt 0:01:00]} Rg8 {[%emt 0:00:08]} 103. Ra5 {[%emt 0:01:22] [#]} Kf4 $1 {[%emt 0:00:25]} 104. Kh3 {[%emt 0:00:36]} Bc3 {[%emt 0:01:07]} 105. Ra3 {[%emt 0:00:25]} Rg3+ {[%emt 0:00:30]} 106. Kh2 {[%emt 0:00:02]} Rd3 {[%emt 0:00:20]} 107. Kg2 {[%emt 0:00:10]} Rd2+ {[%emt 0:00:17]} 108. Kh3 {[%emt 0:00:10]} Be5 {[%emt 0:00:07]} 109. Ra4+ {[%emt 0:00:06] [#]} Kf5 $1 {[%emt 0:00:05]} 110. Rb4 {[%emt 0:00:58]} Rh2# {[%emt 0:00:59] Weighted Error Value: White=0.36/Black=0.35} 0-1